bitfinex/quotes_BTCUSD_20251219
["timestamp","ask_amount","ask_price","bid_price","bid_amount"]
[1766180007930,0.07208,88131.0,88121.0,0.00568]
[1766180008100,0.07208,88131.0,88116.0,0.38811191]
[1766180008101,0.3884,88128.0,88119.0,0.01134829]
[1766180008258,0.3884,88128.0,88120.0,0.01134816]
[1766180008458,0.3884,88128.0,88121.0,0.01134803]
[1766180008812,0.3884,88128.0,88119.0,0.01134829]
[1766180009010,0.3884,88128.0,88120.0,0.01134816]
[1766180010148,0.3884,88128.0,88119.0,0.01134829]
[1766180010352,0.3884,88128.0,88120.0,0.01134816]
[1766180010959,0.3884,88128.0,88121.0,0.01134803]
[1766180011592,0.39408,88135.0,88120.0,0.33136816]
[1766180011799,0.39408,88135.0,88123.0,0.06808646]
[1766180012013,0.06986,88134.0,88123.0,0.01134777]
[1766180012249,0.3884,88133.0,88123.0,0.01134777]
[1766180012706,0.3884,88133.0,88121.0,0.46622]
[1766180012838,0.3884,88133.0,88121.0,0.01134803]
[1766180013047,0.3884,88133.0,88120.0,0.01702816]
[1766180013244,0.00568,88135.0,88121.0,0.46622]
[1766180013445,0.00568,88135.0,88122.0,0.32002]
[1766180013874,0.00568,88135.0,88122.0,0.3313679]
[1766180014217,0.39408,88135.0,88124.0,0.01134764]
[1766180014576,0.39408,88135.0,88125.0,0.01134751]
[1766180014779,0.39408,88135.0,88122.0,0.3313679]
[1766180015205,0.39408,88135.0,88123.0,0.01134777]
[1766180015577,0.39408,88135.0,88127.0,0.01134726]
[1766180015780,0.00568,88135.0,88129.0,0.011347]
[1766180015999,0.00568,88135.0,88130.0,0.01134687]
[1766180016358,0.06703,88144.0,88129.0,0.011347]
[1766180016359,0.00568,88140.0,88133.0,0.30627]
[1766180016949,0.00568,88140.0,88132.0,0.4738]
[1766180018665,0.00568,88140.0,88123.0,0.4738]
[1766180018666,0.001099,88132.0,88123.0,0.4738]
[1766180018872,0.001099,88132.0,88124.0,0.00568]
[1766180018873,0.45361,88132.0,88124.0,0.00568]
[1766180019080,0.45361,88132.0,88122.0,0.00568]
[1766180020327,0.45361,88132.0,88117.0,0.31761854]
[1766180020455,0.45361,88132.0,88122.0,0.00568]
[1766180023020,0.3884,88132.0,88122.0,0.00568]
[1766180023427,0.3884,88132.0,88122.0,0.0170279]
[1766180023625,0.3884,88132.0,88122.0,0.00568]
[1766180024075,0.3884,88132.0,88123.0,0.01134777]
[1766180024272,0.00568,88134.0,88127.0,0.78007]
[1766180024613,0.00568,88134.0,88127.0,0.4738]
[1766180024740,0.00568,88134.0,88128.0,0.78007]
[1766180026581,0.38272,88138.0,88124.0,0.01134764]
[1766180026815,0.4436,88138.0,88123.0,0.31761777]
[1766180027238,0.4436,88138.0,88124.0,0.01134764]
[1766180027442,0.4436,88138.0,88125.0,0.01134751]
[1766180027616,0.4436,88138.0,88124.0,0.31761764]
[1766180028429,0.44303,88137.0,88122.0,0.0170279]
[1766180028645,0.38272,88137.0,88122.0,0.3232979]
[1766180028789,0.44303,88136.0,88122.0,0.31195]
[1766180028976,0.38272,88136.0,88123.0,0.4738]
[1766180029183,0.38272,88136.0,88124.0,0.30627]
[1766180030946,0.001099,88124.0,88113.0,0.30627]
[1766180031293,0.378139,88124.0,88114.0,0.00568]
[1766180031489,0.37704,88124.0,88114.0,0.00568]
[1766180032806,0.37704,88124.0,88110.0,0.4738]
[1766180033011,0.37704,88122.0,88114.0,0.00568]
[1766180033229,0.37704,88122.0,88110.0,0.4738]
[1766180033433,0.43491,88122.0,88111.0,0.00568]
[1766180034438,0.43491,88122.0,88107.0,0.01134983]
[1766180034641,0.43491,88122.0,88101.0,0.01361061]
[1766180034642,0.37704,88111.0,88102.0,0.00568]
[1766180035900,0.37704,88111.0,88102.0,0.01703048]
[1766180036057,0.37704,88111.0,88102.0,0.00568]
[1766180037466,0.37704,88111.0,88102.0,0.01703048]
[1766180037848,0.37704,88111.0,88102.0,0.00568]
[1766180038285,0.37704,88111.0,88102.0,0.01703048]
[1766180038705,0.37704,88111.0,88102.0,0.00568]
[1766180038887,0.37704,88111.0,88102.0,0.01703048]
[1766180039285,0.37704,88111.0,88102.0,0.00568]
[1766180040306,0.37704,88111.0,88101.0,0.3233006]
[1766180040531,0.37704,88111.0,88102.0,0.01135048]
[1766180041171,0.37704,88111.0,88096.0,0.30627]
[1766180041367,0.05365,88106.0,88085.0,0.4738]
[1766180041483,0.00568,88110.0,88081.0,0.01135318]
[1766180041484,0.05365,88096.0,88081.0,0.01135318]
[1766180041684,0.23267007,88110.0,88082.0,0.01135305]
[1766180041685,0.36569,88091.0,88082.0,0.01135305]
[1766180042135,0.36569,88091.0,88086.0,0.01135254]
[1766180042354,0.36569,88091.0,88084.0,0.01135279]
[1766180042535,0.36569,88091.0,88082.0,0.01135305]
[1766180042743,0.36569,88091.0,88084.0,0.01135279]
[1766180042947,0.36569,88091.0,88082.0,0.01135305]
[1766180042948,0.35434,88089.0,88080.0,0.00568]
[1766180043206,0.35434,88089.0,88070.0,0.3630646]
[1766180043207,0.35434,88085.0,88070.0,0.30627]
[1766180043408,0.35434,88081.0,88065.0,0.37440126]
[1766180043611,0.35434,88079.0,88067.0,0.01135499]
[1766180043818,0.35434,88079.0,88068.0,0.01135486]
[1766180044374,0.35434,88079.0,88067.0,0.01135499]
[1766180044557,0.35434,88079.0,88068.0,0.01135486]
[1766180044929,0.00568,88084.0,88079.0,0.001099]
[1766180045260,0.36002,88084.0,88070.0,0.30538]
[1766180045718,0.36002,88084.0,88070.0,0.3167346]
[1766180046094,0.41228,88084.0,88069.0,0.45372]
[1766180046290,0.41228,88084.0,88070.0,0.0113546]
[1766180046549,0.41228,88084.0,88071.0,0.01135447]
[1766180046711,0.41228,88084.0,88070.0,0.0113546]
[1766180046903,0.41228,88084.0,88072.0,0.01135434]
[1766180047771,0.41228,88084.0,88076.0,0.01135383]
[1766180047990,0.41228,88084.0,88073.0,0.01135421]
[1766180048478,0.41228,88084.0,88074.0,0.01135408]
[1766180048641,0.41228,88084.0,88075.0,0.01135395]
[1766180049258,0.41228,88084.0,88071.0,0.056772]
[1766180049259,0.004581,88084.0,88078.0,0.46507357]
[1766180049432,0.004581,88084.0,88081.0,0.01135318]
[1766180049633,0.00568,88088.0,88081.0,0.01135318]
[1766180049836,0.00568,88088.0,88079.0,0.31673344]
[1766180050060,0.00568,88088.0,88080.0,0.01135331]
[1766180051377,0.00568,88088.0,88075.0,0.06812342]
[1766180051378,0.35434,88087.0,88074.0,0.01135408]
[1766180051674,0.35434,88087.0,88078.0,0.01135357]
[1766180051995,0.35434,88087.0,88077.0,0.0113537]
[1766180052785,0.35434,88087.0,88078.0,0.01135357]
[1766180052992,0.35434,88087.0,88077.0,0.0113537]
[1766180053192,0.35434,88087.0,88078.0,0.01135357]
[1766180053546,0.35434,88087.0,88080.0,0.01135331]
[1766180053750,0.00568,88088.0,88082.0,0.01135305]
[1766180053954,0.00568,88088.0,88084.0,0.01135279]
[1766180054603,0.00568,88088.0,88081.0,0.46507318]
[1766180054804,0.00568,88088.0,88082.0,0.01135305]
[1766180055007,0.04544,88098.0,88086.0,0.01135254]
[1766180055008,0.36002,88098.0,88086.0,0.01135254]
[1766180055207,0.4079,88098.0,88083.0,0.01135292]
[1766180055530,0.4079,88098.0,88084.0,0.01135279]
[1766180055729,0.4079,88098.0,88085.0,0.01135267]
[1766180055950,0.001099,88085.0,88082.0,0.00568]
[1766180056152,0.36002,88090.0,88077.0,0.3167337]
[1766180056329,0.36002,88088.0,88078.0,0.01703357]
[1766180056487,0.36002,88088.0,88080.0,0.01135331]
[1766180056688,0.36002,88088.0,88081.0,0.01135318]
[1766180056894,0.36002,88088.0,88080.0,0.01135331]
[1766180057430,0.36002,88088.0,88077.0,0.0170337]
[1766180057678,0.36002,88088.0,88078.0,0.01135357]
[1766180058003,0.36002,88088.0,88079.0,0.01135344]
[1766180058208,0.36002,88088.0,88078.0,0.01135357]
[1766180058641,0.36002,88088.0,88079.0,0.01135344]
[1766180059300,0.00568,88087.0,88080.0,0.01135331]
[1766180059681,0.00568,88087.0,88079.0,0.01135344]
[1766180060976,0.00568,88087.0,88077.0,0.00568]
[1766180061169,0.00568,88087.0,88045.0,0.1487]
[1766180061170,0.04439003,88063.0,88045.0,0.01135782]
[1766180061313,0.01135473,88069.0,88042.0,0.48566]
[1766180061314,0.35395,88062.0,88042.0,0.48566]
[1766180061510,0.35395,88062.0,88044.0,0.49661795]
[1766180061731,0.35395,88062.0,88047.0,0.01135757]
[1766180061936,0.35395,88062.0,88043.0,0.07118062]
[1766180061937,0.00568,88062.0,88050.0,0.30883718]
[1766180062140,0.00568,88062.0,88050.0,0.29748]
[1766180062746,0.00568,88062.0,88049.0,0.48526]
[1766180062914,0.35395,88062.0,88049.0,0.48526]
[1766180063356,0.00568,88062.0,88049.0,0.30883731]
[1766180063565,0.00568,88062.0,88051.0,0.78274]
[1766180063779,0.00568,88062.0,88052.0,0.29748]
[1766180066774,0.05402499,88067.0,88048.0,0.00568]
[1766180066775,0.03040194,88088.0,88062.0,0.48526]
[1766180066944,0.36531,88081.0,88063.0,0.29748]
[1766180067120,0.36531,88079.0,88063.0,0.29748]
[1766180068255,0.36531,88079.0,88071.0,0.01135447]
[1766180068491,0.36531,88079.0,88057.0,0.22712475]
[1766180068492,0.00572,88079.0,88076.0,0.01135383]
[1766180068693,0.00572,88079.0,88073.0,0.01135421]
[1766180069073,0.00572,88079.0,88071.0,0.79409447]
[1766180069277,0.00572,88079.0,88073.0,0.01135421]
[1766180069479,0.00572,88079.0,88074.0,0.01135408]
[1766180069644,0.00572,88079.0,88075.0,0.01135395]
[1766180069847,0.00572,88079.0,88076.0,0.01135383]
[1766180071215,0.00572,88079.0,88074.0,0.01135408]
[1766180071642,0.00572,88079.0,88076.0,0.01135383]
[1766180071786,0.00572,88079.0,88075.0,0.01135395]
[1766180072302,0.00572,88079.0,88076.0,0.01135383]
[1766180072620,0.00572,88079.0,88075.0,0.01135395]
[1766180072802,0.00572,88079.0,88072.0,0.01135434]
[1766180073405,0.00572,88079.0,88076.0,0.01135383]
[1766180074880,0.00572,88079.0,88075.0,0.01135395]
[1766180075080,0.00572,88079.0,88076.0,0.01135383]
[1766180075498,0.00572,88079.0,88076.0,0.06812295]
[1766180075902,0.00572,88081.0,88077.0,0.0113537]
[1766180076102,0.00572,88081.0,88076.0,0.01135383]
[1766180077414,0.00572,88081.0,88074.0,0.01135408]
[1766180077623,0.001099,88074.0,88069.0,0.01135473]
[1766180077798,0.37103,88081.0,88069.0,0.01135473]
[1766180078395,0.37103,88081.0,88066.0,0.28997]
[1766180078699,0.36531,88079.0,88065.0,0.01135524]
[1766180079361,0.4296,88079.0,88065.0,0.01135524]
[1766180080801,0.36531,88077.0,88065.0,0.01135524]
[1766180081001,0.4288,88077.0,88065.0,0.01135524]
[1766180081184,0.4288,88077.0,88064.0,0.01135537]
[1766180081378,0.4288,88077.0,88065.0,0.01135524]
[1766180081586,0.4288,88077.0,88064.0,0.01135537]
[1766180082151,0.4288,88077.0,88065.0,0.01135524]
[1766180082350,0.4288,88077.0,88064.0,0.01135537]
[1766180082555,0.4288,88077.0,88063.0,0.0113555]
[1766180082776,0.4288,88077.0,88062.0,0.28997]
[1766180082960,0.01707318,88081.0,88066.0,0.01135512]
[1766180082961,0.36531,88076.0,88066.0,0.01135512]
[1766180083115,0.00568,88075.0,88068.0,0.01135486]
[1766180083575,0.42801,88074.0,88063.0,0.0113555]
[1766180083755,0.42801,88074.0,88061.0,0.55827437]
[1766180083958,0.42801,88074.0,88063.0,0.0113555]
[1766180084360,0.42801,88074.0,88064.0,0.01135537]
[1766180085038,0.42801,88074.0,88063.0,0.0113555]
[1766180085267,0.36531,88072.0,88062.0,0.01135563]
[1766180085480,0.36531,88072.0,88063.0,0.0113555]
[1766180087160,0.36531,88072.0,88064.0,0.01135537]
[1766180087819,0.36531,88072.0,88063.0,0.0113555]
[1766180088016,0.36531,88072.0,88064.0,0.01135537]
[1766180088727,0.00568,88075.0,88067.0,0.01135499]
[1766180089490,0.37099,88075.0,88067.0,0.01135499]
[1766180091112,0.37099,88075.0,88068.0,0.01135486]
[1766180091319,0.37099,88075.0,88065.0,0.06813115]
[1766180091513,0.37099,88075.0,88065.0,0.01135524]
[1766180091723,0.37099,88075.0,88067.0,0.01135499]
[1766180091924,0.37099,88075.0,88063.0,0.55827295]
[1766180092123,0.37099,88075.0,88064.0,0.01135537]
[1766180092693,0.37099,88075.0,88065.0,0.01135524]
[1766180092895,0.37099,88075.0,88066.0,0.01135512]
[1766180093299,0.37099,88075.0,88065.0,0.01135524]
[1766180093475,0.37099,88075.0,88066.0,0.01135512]
[1766180093888,0.37099,88075.0,88067.0,0.01135499]
[1766180094277,0.37099,88075.0,88066.0,0.01135512]
[1766180095044,0.37099,88075.0,88067.0,0.01135499]
[1766180095624,0.37099,88075.0,88069.0,0.01135473]
[1766180095829,0.37099,88075.0,88067.0,0.01135499]
[1766180096230,0.37099,88075.0,88070.0,0.0113546]
[1766180096407,0.00568,88077.0,88073.0,0.01135421]
[1766180096633,0.00568,88077.0,88070.0,0.0113546]
[1766180096956,0.00568,88077.0,88072.0,0.01135434]
[1766180097167,0.00568,88077.0,88074.0,0.01135408]
[1766180098382,0.04548,88089.0,88076.0,0.01135383]
[1766180098595,0.04548,88089.0,88078.0,0.28997]
[1766180098596,0.00568,88088.0,88078.0,0.28997]
[1766180099403,0.00568,88088.0,88077.0,0.49014]
[1766180099599,0.00568,88088.0,88077.0,0.5014937]
[1766180099801,0.00568,88088.0,88077.0,0.49014]
[1766180100775,0.37667,88088.0,88077.0,0.49014]
[1766180100991,0.001099,88077.0,88069.0,0.01703473]
[1766180101174,0.37099,88074.0,88063.0,0.0113555]
[1766180101396,0.37099,88070.0,88063.0,0.0113555]
[1766180101821,0.07491229,88099.0,88060.0,0.00568]
[1766180101822,0.05675688,88096.0,88075.0,0.01135395]
[1766180102057,0.05675688,88096.0,88080.0,0.28997]
[1766180102058,0.41647,88093.0,88080.0,0.28997]
[1766180102217,0.37099,88091.0,88077.0,0.0113537]
[1766180102424,0.42687,88089.0,88080.0,0.01135331]
[1766180103034,0.37099,88089.0,88080.0,0.01135331]
[1766180103374,0.37099,88089.0,88079.0,0.01135344]
[1766180103809,0.37099,88089.0,88081.0,0.01135318]
[1766180105155,0.37099,88089.0,88082.0,0.01135305]
[1766180105359,0.37099,88089.0,88081.0,0.01135318]
[1766180105624,0.00568,88088.0,88081.0,0.01135318]
[1766180106178,0.00568,88088.0,88079.0,0.01135344]
[1766180106574,0.00568,88088.0,88080.0,0.01135331]
[1766180107224,0.00568,88088.0,88079.0,0.01135344]
[1766180107432,0.00568,88088.0,88077.0,0.05676842]
[1766180107631,0.00568,88088.0,88079.0,0.01135344]
[1766180108028,0.00568,88088.0,88080.0,0.01135331]
[1766180109622,0.00568,88088.0,88079.0,0.01135344]
[1766180110330,0.00568,88088.0,88080.0,0.01135331]
[1766180112442,0.00568,88088.0,88079.0,0.01135344]
[1766180112785,0.00568,88088.0,88076.0,0.49014]
[1766180113048,0.37099,88087.0,88076.0,0.50149383]
[1766180113246,0.40765,88087.0,88075.0,0.01135395]
[1766180113556,0.40765,88087.0,88077.0,0.0113537]
[1766180113776,0.40765,88087.0,88079.0,0.01135344]
[1766180113777,0.37099,88087.0,88079.0,0.01135344]
[1766180114058,0.37099,88087.0,88081.0,0.01135318]
[1766180114428,0.37099,88087.0,88080.0,0.01135331]
[1766180115112,0.37099,88087.0,88079.0,0.01135344]
[1766180116182,0.37099,88087.0,88074.0,0.35079027]
[1766180116183,0.001099,88079.0,88071.0,0.00568]
[1766180116392,0.001099,88079.0,88070.0,0.0170346]
[1766180116599,0.37099,88081.0,88072.0,0.01135434]
[1766180116790,0.39648,88081.0,88068.0,0.00568]
[1766180117318,0.02549,88080.0,88068.0,0.00568]
[1766180117520,0.37099,88079.0,88068.0,0.00568]
[1766180117857,0.37099,88079.0,88068.0,0.01703486]
[1766180118617,0.37099,88079.0,88068.0,0.00568]
[1766180119004,0.37099,88079.0,88068.0,0.01703486]
[1766180119163,0.37099,88079.0,88068.0,0.00568]
[1766180119364,0.37099,88079.0,88071.0,0.01135447]
[1766180119562,0.37099,88079.0,88073.0,0.01135421]
[1766180119773,0.00568,88082.0,88076.0,0.27892383]
[1766180119995,0.00568,88082.0,88077.0,0.0113537]
[1766180120409,0.00568,88082.0,88078.0,0.01135357]
[1766180120580,0.00568,88082.0,88076.0,0.26757]
[1766180122084,0.001099,88076.0,88070.0,0.00568]
[1766180122381,0.01553,88082.0,88070.0,0.00568]
[1766180122382,0.37099,88078.0,88070.0,0.00568]
[1766180122574,0.37099,88076.0,88066.0,0.01135512]
[1766180123402,0.37099,88076.0,88068.0,0.01135486]
[1766180123668,0.00568,88077.0,88071.0,0.01135447]
[1766180124444,0.00568,88077.0,88074.0,0.01135408]
[1766180124660,0.00568,88077.0,88071.0,0.01135447]
[1766180125423,0.00568,88077.0,88072.0,0.01135434]
[1766180126097,0.00568,88077.0,88073.0,0.01135421]
[1766180126296,0.00568,88077.0,88074.0,0.01135408]
[1766180126883,0.00568,88077.0,88073.0,0.01135421]
[1766180128401,0.00568,88077.0,88072.0,0.01135434]
[1766180129158,0.00568,88077.0,88073.0,0.01135421]
[1766180129964,0.00568,88077.0,88072.0,0.01135434]
[1766180130216,0.00568,88077.0,88073.0,0.01135421]
[1766180130735,0.00568,88077.0,88074.0,0.01135408]
[1766180131766,0.001099,88074.0,88068.0,0.01135486]
[1766180131935,0.00568,88077.0,88070.0,0.0113546]
[1766180132130,0.00568,88077.0,88069.0,0.01135473]
[1766180132580,0.00568,88077.0,88068.0,0.01135486]
[1766180132987,0.00568,88077.0,88067.0,0.45719]
[1766180133362,0.00568,88077.0,88067.0,0.46854499]
[1766180133566,0.00568,88077.0,88070.0,0.0113546]
[1766180133764,0.00568,88077.0,88071.0,0.01135447]
[1766180133990,0.00568,88077.0,88072.0,0.01135434]
[1766180134890,0.00568,88077.0,88073.0,0.01135421]
[1766180135099,0.00568,88077.0,88070.0,0.2645]
[1766180135298,0.00568,88077.0,88070.0,0.2758546]
[1766180135463,0.00568,88077.0,88070.0,0.2645]
[1766180135662,0.00568,88077.0,88066.0,0.00568]
[1766180135907,0.35886,88077.0,88066.0,0.00568]
[1766180136234,0.35886,88077.0,88066.0,0.27018]
[1766180136429,0.35886,88077.0,88066.0,0.28153512]
[1766180136660,0.35886,88077.0,88067.0,0.27585499]
[1766180136790,0.00568,88077.0,88069.0,0.75462]
[1766180138704,0.00568,88077.0,88069.0,0.49012]
[1766180138925,0.00568,88077.0,88064.0,0.27018]
[1766180138926,0.001099,88069.0,88064.0,0.28153537]
[1766180139119,0.35359,88077.0,88065.0,0.2645]
[1766180139345,0.35359,88077.0,88066.0,0.01135512]
[1766180139548,0.35359,88077.0,88065.0,0.27585524]
[1766180139926,0.35359,88077.0,88066.0,0.01135512]
[1766180140138,0.35359,88077.0,88065.0,0.27585524]
[1766180140590,0.35359,88077.0,88065.0,0.2645]
[1766180140800,0.001099,88065.0,88055.0,0.01135653]
[1766180141003,0.001099,88065.0,88056.0,0.00568]
[1766180141403,0.34449,88067.0,88056.0,0.00568]
[1766180142974,0.001099,88056.0,88052.0,0.00568]
[1766180143575,0.33952,88067.0,88052.0,0.27018]
[1766180144048,0.33952,88067.0,88054.0,0.01135666]
[1766180144250,0.33952,88067.0,88055.0,0.75462]
[1766180144918,0.33952,88067.0,88055.0,0.76597653]
[1766180145438,0.33952,88067.0,88058.0,0.01135615]
[1766180145802,0.33952,88067.0,88057.0,0.01135628]
[1766180146617,0.33952,88067.0,88055.0,0.75462]
[1766180147485,0.33952,88067.0,88057.0,0.01135628]
[1766180147744,0.33952,88067.0,88056.0,0.2645]
[1766180148775,0.33952,88067.0,88057.0,0.01135628]
[1766180148996,0.33952,88067.0,88056.0,0.2645]
[1766180154078,0.33952,88067.0,88056.0,0.2758564]
[1766180154510,0.33952,88067.0,88059.0,0.01135602]
[1766180154725,0.33952,88067.0,88056.0,0.2645]
[1766180154937,0.33952,88067.0,88056.0,0.2758564]
[1766180155169,0.33952,88067.0,88055.0,0.50147653]
[1766180155815,0.33952,88067.0,88056.0,0.0113564]
[1766180156503,0.33952,88067.0,88055.0,0.50147653]
[1766180156718,0.33952,88067.0,88055.0,0.49012]
[1766180158836,0.00568,88066.0,88055.0,0.49012]
[1766180159047,0.32276,88066.0,88055.0,0.49012]
[1766180160602,0.31708,88066.0,88055.0,0.49012]
[1766180160730,0.00568,88065.0,88055.0,0.49012]
[1766180165089,0.00568,88065.0,88058.0,0.22465]
[1766180165295,0.00568,88065.0,88061.0,0.22465]
[1766180165675,0.00568,88065.0,88064.0,0.00238123]
[1766180166325,0.03041476,88091.0,88072.0,0.49467566]
[1766180166507,0.01135151,88094.0,88077.0,0.22465]
[1766180166508,0.00568,88090.0,88077.0,0.22465]
[1766180166709,0.01135408,88079.0,88077.0,0.22465]
[1766180166908,0.00568,88084.0,88077.0,0.22465]
[1766180167460,0.00568,88085.0,88078.0,0.42655]
[1766180167582,0.00568,88085.0,88079.0,0.22465]
[1766180168198,0.00568,88085.0,88079.0,0.42655]
[1766180168506,0.004581,88085.0,88079.0,0.43790344]
[1766180168709,0.30536,88092.0,88082.0,0.01135305]
[1766180168909,0.00568,88094.0,88086.0,0.42655]
[1766180169112,0.00568,88096.0,88086.0,0.42655]
[1766180170832,0.00568,88096.0,88087.0,0.6512]
[1766180171831,0.00568,88096.0,88090.0,0.0015756]
[1766180172051,0.00568,88096.0,88087.0,0.6512]
[1766180172257,0.00568,88096.0,88087.0,0.66255241]
[1766180172454,0.06809441,88113.0,88095.0,0.42655]
[1766180172689,0.3147,88110.0,88092.0,0.23600176]
[1766180172808,0.30902,88107.0,88092.0,0.22465]
[1766180173914,0.30902,88107.0,88092.0,0.23600176]
[1766180174152,0.30902,88107.0,88093.0,0.23600163]
[1766180174376,0.30902,88107.0,88093.0,0.22465]
[1766180175380,0.30902,88107.0,88093.0,0.23600163]
[1766180177390,0.30902,88107.0,88095.0,0.00142073]
[1766180177507,0.30902,88107.0,88094.0,0.22465]
[1766180177989,0.30902,88107.0,88106.0,0.00108007]
[1766180178384,0.30902,88107.0,88106.0,7e-08]
[1766180199633,0.00568,88110.0,88106.0,7e-08]
[1766180199841,0.00513,88110.0,88101.0,0.0113506]
[1766180200252,0.00513,88110.0,88102.0,0.01135048]
[1766180201245,0.00513,88110.0,88103.0,0.01135035]
[1766180201459,0.01361061,88120.0,88108.0,0.22853]
[1766180201667,0.06979774,88126.0,88114.0,0.01134893]
[1766180201879,0.2876,88125.0,88112.0,0.22853]
[1766180202064,0.28247,88122.0,88112.0,0.22853]
[1766180203116,0.28247,88122.0,88109.0,0.22853]
[1766180203932,0.28247,88122.0,88109.0,0.23987957]
[1766180204080,0.28247,88122.0,88110.0,0.22853]
[1766180205012,0.28247,88122.0,88110.0,0.23987944]
[1766180205178,0.28247,88122.0,88110.0,0.22853]
[1766180205591,0.28247,88122.0,88111.0,0.01134932]
[1766180205805,0.28247,88122.0,88110.0,0.23987944]
[1766180206702,0.28247,88122.0,88111.0,0.01134932]
[1766180207131,0.28247,88122.0,88112.0,0.01134919]
[1766180207318,0.28247,88122.0,88113.0,0.01134906]
[1766180209714,0.28247,88122.0,88115.0,0.0113488]
[1766180209927,0.00568,88125.0,88118.0,0.01134841]
[1766180210155,0.02436168,88140.0,88127.0,0.22853]
[1766180210368,0.2445,88141.0,88127.0,0.22853]
[1766180210369,0.03977263,88139.0,88129.0,0.22853]
[1766180210575,0.00568,88139.0,88129.0,0.22853]
[1766180211773,0.2795,88139.0,88126.0,0.44464738]
[1766180211995,0.2795,88139.0,88127.0,0.01134726]
[1766180212226,0.00568,88139.0,88129.0,0.4333]
[1766180212503,0.00568,88139.0,88130.0,0.22853]
[1766180215076,0.28218545,88145.0,88130.0,0.23987687]
[1766180215213,0.00568,88144.0,88134.0,0.22853]
[1766180216326,0.000549,88134.0,88128.0,0.22853]
[1766180216771,0.00055,88128.0,88126.0,0.00568]
[1766180216946,0.27012,88133.0,88126.0,0.00568]
[1766180217713,0.27012,88133.0,88126.0,0.005131]
[1766180217912,0.01134623,88135.0,88126.0,0.005131]
[1766180218493,0.2694,88139.0,88127.0,0.22853]
[1766180218700,0.2694,88139.0,88135.0,0.000549]
[1766180219076,0.2694,88139.0,88127.0,0.22853]
[1766180219993,0.2694,88139.0,88127.0,0.23987726]
[1766180220158,0.00568,88144.0,88130.0,0.23987687]
[1766180220359,0.00568,88144.0,88131.0,0.22853]
[1766180220564,0.00568,88144.0,88126.0,0.005131]
[1766180220895,0.01702507,88144.0,88126.0,0.24500838]
[1766180221098,0.0113452,88143.0,88126.0,0.24500838]
[1766180221260,0.01134481,88146.0,88128.0,0.01134713]
[1766180221468,0.00568,88145.0,88129.0,0.239877]
[1766180221697,0.00568,88145.0,88129.0,0.22853]
[1766180222001,0.00568,88145.0,88131.0,0.23987674]
[1766180222219,0.00568,88145.0,88133.0,0.22853]
[1766180223179,0.00568,88145.0,88133.0,0.23987648]
[1766180224005,0.00568,88145.0,88133.0,0.22853]
[1766180224409,0.26909,88145.0,88133.0,0.22853]
[1766180227554,0.26909,88145.0,88133.0,0.23987648]
[1766180227717,0.26909,88145.0,88133.0,0.22853]
[1766180229460,0.26909,88145.0,88133.0,0.23987648]
[1766180229658,0.26909,88145.0,88133.0,0.22853]
[1766180230040,0.06807146,88143.0,88133.0,0.22853]
[1766180230250,0.01134545,88141.0,88129.0,0.4333]
[1766180230446,0.26580545,88141.0,88129.0,0.4333]
[1766180230646,0.25446,88141.0,88129.0,0.4333]
[1766180231449,0.25446,88141.0,88127.0,0.24496092]
[1766180232202,0.00568,88140.0,88127.0,0.24496092]
[1766180232579,0.00568,88140.0,88128.0,0.43271]
[1766180232786,0.00568,88140.0,88129.0,0.21087]
[1766180233304,0.26595558,88140.0,88129.0,0.21087]
[1766180233464,0.25461,88140.0,88128.0,0.46680092]
[1766180234924,0.26595558,88140.0,88128.0,0.46680092]
[1766180235303,0.25461,88140.0,88128.0,0.46680092]
[1766180237398,0.25461,88140.0,88128.0,0.03409092]
[1766180238501,0.25461,88140.0,88128.0,0.24496092]
[1766180239913,0.00568,88140.0,88133.0,0.19193]
[1766180240115,0.00568,88140.0,88136.0,0.19193]
[1766180240292,0.00568,88140.0,88137.0,0.19193]
[1766180240497,0.2351,88149.0,88139.0,0.42345]
[1766180240498,0.00568,88149.0,88139.0,0.42345]
[1766180240702,0.00568,88149.0,88140.0,0.19193]
[1766180243611,0.00568,88149.0,88139.0,0.42345]
[1766180244347,0.00568,88149.0,88139.0,0.61538]
[1766180244773,0.00568,88149.0,88139.0,0.42345]
[1766180244940,0.24574,88149.0,88139.0,0.42345]
[1766180245135,0.24574,88149.0,88135.0,0.19193]
[1766180246901,0.23697,88148.0,88135.0,0.191381]
[1766180247598,0.24831455,88148.0,88135.0,0.191381]
[1766180248164,0.23697,88148.0,88135.0,0.191381]
[1766180249553,0.23697,88148.0,88135.0,0.20272723]
[1766180250086,0.23697,88148.0,88136.0,0.0113461]
[1766180250291,0.23697,88148.0,88136.0,0.2032761]
[1766180250495,0.00568,88149.0,88148.0,0.000549]
[1766180251174,0.00568,88149.0,88142.0,0.19193]
[1766180252457,0.00055,88142.0,88137.0,0.03408779]
[1766180252710,0.23379,88149.0,88137.0,0.03408779]
[1766180253117,0.24513442,88149.0,88137.0,0.03408779]
[1766180253411,0.23379,88149.0,88137.0,0.03408779]
[1766180253735,0.24513442,88149.0,88137.0,0.03408779]
[1766180254478,0.01134455,88148.0,88137.0,0.03408779]
[1766180254658,0.01134558,88140.0,88137.0,0.03353779]
[1766180254877,0.01134571,88139.0,88129.0,0.00568]
[1766180255057,0.01134584,88138.0,88129.0,0.03408868]
[1766180255262,0.01134571,88139.0,88126.0,0.17688]
[1766180255405,0.01134571,88139.0,88127.0,0.03408868]
[1766180255601,0.01134584,88138.0,88127.0,0.03408868]
[1766180255803,0.01134584,88138.0,88117.0,0.11353069]
[1766180255804,0.18904,88126.0,88108.0,0.17688]
[1766180256060,0.20038764,88124.0,88107.0,0.39274]
[1766180256239,0.18904,88124.0,88110.0,0.17688]
[1766180256925,0.18904,88124.0,88111.0,0.17688]
[1766180257129,0.03409662,88130.0,88124.0,0.001099]
[1766180257312,0.00568,88129.0,88124.0,0.001099]
[1766180257522,0.00568,88129.0,88123.0,0.17688]
[1766180258018,0.00568,88129.0,88119.0,0.38706]